bitfinex/quotes_SOLUSD_20260309
["timestamp","ask_amount","ask_price","bid_price","bid_amount"]
[1773062847455,11.93814784,84.86,84.83,11.45996463]
[1773062847962,47.11516292,84.899,84.83,11.45996463]
[1773062847963,11.78339876,84.866,84.831,41.25850219]
[1773062848368,11.45996463,84.86,84.831,41.25850219]
[1773062849171,11.78339876,84.866,84.831,41.25850219]
[1773062849376,11.93814784,84.87,84.832,0.48796141]
[1773062849561,11.43200634,84.87,84.832,0.48796141]
[1773062849974,11.43200634,84.87,84.834,0.48796141]
[1773062850163,0.47818321,84.868,84.833,11.78786557]
[1773062850487,11.43200634,84.87,84.834,0.48796141]
[1773062850776,0.47818321,84.878,84.841,0.48796141]
[1773062850948,11.43200634,84.87,84.84,11.43200634]
[1773062851149,11.43200634,84.87,84.839,0.48796141]
[1773062851350,11.78147716,84.879,84.84,11.43200634]
[1773062851351,0.47818321,84.878,84.84,11.43200634]
[1773062851556,11.43200634,84.87,84.84,11.43200634]
[1773062851968,11.43200634,84.87,84.839,0.48796141]
[1773062852161,11.78286535,84.869,84.84,11.78689297]
[1773062852365,11.43200634,84.86,84.832,11.78796433]
[1773062852569,0.47818321,84.868,84.832,11.78796433]
[1773062852772,11.43200634,84.86,84.832,11.78796433]
[1773062853085,0.47818321,84.868,84.833,0.45000152]
[1773062853285,0.47298179,84.918,84.861,0.45000152]
[1773062853577,0.47298179,84.918,84.88,11.43200634]
[1773062853786,11.43200634,84.91,84.877,0.45000152]
[1773062854148,11.43200634,84.91,84.861,0.28432314]
[1773062854149,11.43200634,84.92,84.89,11.43200634]
[1773062854361,12.24766151,84.928,84.891,0.45000152]
[1773062854567,0.47298179,84.939,84.891,0.45000152]
[1773062854860,11.43200634,84.92,84.891,0.45000152]
[1773062855049,11.43200634,84.92,84.882,0.45000152]
[1773062855251,0.47298179,84.922,84.89,11.43200634]
[1773062855456,0.47298179,84.929,84.891,0.45000152]
[1773062855659,0.47298179,84.939,84.88,0.45000152]
[1773062855953,11.43200634,84.92,84.881,0.45000152]
[1773062856164,0.47298179,84.897,84.86,11.43200634]
[1773062856559,0.47298179,84.897,84.86,0.45000152]
[1773062856867,0.47298179,84.897,84.856,41.24634675]
[1773062856868,0.47298179,84.897,84.87,11.43200634]
[1773062857070,47.09206498,84.94,84.87,11.43200634]
[1773062857071,11.43200634,84.91,84.871,0.45000152]
[1773062857369,11.43200634,84.91,84.856,41.24634675]
[1773062857370,12.24818374,84.925,84.891,0.45000152]
[1773062857572,11.43200634,84.92,84.891,0.45000152]
[1773062858069,0.47298179,84.919,84.88,11.43200634]
[1773062858272,11.77606632,84.918,84.881,11.78119956]
[1773062858572,11.77606632,84.918,84.882,0.45000152]
[1773062860246,12.24904811,84.918,84.883,11.78092197]
[1773062860452,0.47298179,84.899,84.86,11.43200634]
[1773062860652,11.43200634,84.89,84.86,11.43200634]
[1773062860861,135.4247627,84.918,84.853,0.45000152]
[1773062861073,135.4247627,84.918,84.837,11.7872163]
[1773062861074,11.43200634,84.86,84.837,11.7872163]
[1773062861274,11.43200634,84.85,84.81,0.45000152]
[1773062861456,11.43200634,84.83,84.761,0.45000152]
[1773062861656,11.43200634,84.82,84.788,0.45000152]
[1773062861874,11.43200634,84.82,84.761,147.47348425]
[1773062861875,11.43200634,84.8,84.776,0.45000152]
[1773062862068,11.43200634,84.8,84.762,0.45000152]
[1773062862270,11.43200634,84.8,84.761,11.79787874]
[1773062862271,11.43200634,84.79,84.76,0.2]
[1773062862456,11.43200634,84.79,84.76,11.63200634]
[1773062862762,245.32798807,84.839,84.731,0.45000152]
[1773062862763,11.43200634,84.77,84.731,0.45000152]
[1773062862956,11.43200634,84.77,84.741,0.45000152]
[1773062863161,0.47298179,84.789,84.751,0.45000152]
[1773062863364,11.43200634,84.78,84.751,0.45000152]
[1773062863750,11.43200634,84.76,84.73,11.43200634]
[1773062864262,11.80073042,84.741,84.711,0.45000152]
[1773062864571,11.80073042,84.741,84.676,47.2384657]
[1773062864572,0.47298179,84.729,84.69,11.43200634]
[1773062864786,58.99287365,84.756,84.672,0.45000152]
[1773062864787,0.47298179,84.719,84.672,0.45000152]
[1773062864953,0.47298179,84.719,84.681,0.45000152]
[1773062865152,11.43200634,84.72,84.691,0.45000152]
[1773062865958,11.43200634,84.71,84.681,0.45000152]
[1773062866172,0.47298179,84.731,84.681,0.45000152]
[1773062866470,0.47298179,84.731,84.69,11.43200634]
[1773062866471,11.43200634,84.73,84.69,11.43200634]
[1773062866714,11.43200634,84.72,84.688,0.45000152]
[1773062866855,11.8021952,84.73,84.691,0.45000152]
[1773062866856,11.43200634,84.73,84.691,0.45000152]
[1773062867174,11.43200634,84.72,84.691,0.45000152]
[1773062867376,135.6836094,84.756,84.644,1.18141864]
[1773062867377,11.43200634,84.71,84.644,1.18141864]
[1773062867671,11.43200634,84.7,84.663,0.48286304]
[1773062867895,11.43200634,84.7,84.629,47.26465731]
[1773062867896,11.43200634,84.68,84.651,0.48286304]
[1773062868178,11.43200634,84.68,84.6,0.2]
[1773062868179,0.45743516,84.679,84.631,0.48286304]
[1773062868388,11.43200634,84.66,84.633,0.48286304]
[1773062868562,0.45743516,84.669,84.621,12.30026061]
[1773062868563,11.43200634,84.65,84.621,12.30026061]
[1773062868761,11.43200634,84.66,84.622,0.48286304]
[1773062869168,11.43200634,84.66,84.63,11.43200634]
[1773062869365,0.45743516,84.681,84.623,0.48286304]
[1773062869576,11.8894415,84.68,84.641,0.48286304]
[1773062869774,11.43200634,84.68,84.641,0.48286304]
[1773062869967,11.80797938,84.689,84.65,11.43200634]
[1773062870275,0.45743516,84.72,84.661,0.48286304]
[1773062870475,11.43200634,84.78,84.66,11.43200634]
[1773062870476,0.45743516,84.754,84.71,11.43200634]
[1773062870681,0.45743516,84.754,84.72,11.43200634]
[1773062870974,0.45743516,84.739,84.7,11.43200634]
[1773062871165,0.45743516,84.739,84.71,11.43200634]
[1773062871364,0.45743516,84.739,84.7,11.43200634]
[1773062871757,0.45743516,84.739,84.71,11.43200634]
[1773062872260,0.45743516,84.766,84.73,11.43200634]
[1773062872575,0.45743516,84.764,84.731,11.80205591]
[1773062872872,0.45743516,84.776,84.75,11.43200634]
[1773062873072,0.45743516,84.769,84.731,41.3071957]
[1773062873380,0.45743516,84.779,84.74,11.43200634]
[1773062874164,0.45743516,84.769,84.731,11.80205591]
[1773062874371,0.45743516,84.769,84.731,41.3071957]
[1773062874681,0.45743516,84.769,84.74,11.43200634]
[1773062874875,0.45743516,84.767,84.73,11.43200634]
[1773062875177,0.45743516,84.799,84.751,0.48286304]
[1773062875373,0.45743516,84.789,84.75,11.43200634]
[1773062875681,0.45743516,84.789,84.76,11.43200634]
[1773062875884,0.45743516,84.789,84.75,11.43200634]
[1773062876985,0.45743516,84.769,84.74,11.43200634]
[1773062877482,0.45743516,84.769,84.732,11.80191663]
[1773062877979,0.45743516,84.781,84.75,11.43200634]
[1773062878283,0.45743516,84.769,84.732,11.80191663]
[1773062878481,0.45743516,84.769,84.73,11.43200634]
[1773062878866,0.45743516,84.769,84.681,48.41672997]
[1773062878867,0.45743516,84.808,84.74,11.43200634]
[1773062879066,0.45743516,84.779,84.74,11.43200634]
[1773062879783,0.45743516,84.779,84.75,11.43200634]
[1773062879966,0.45743516,84.779,84.74,11.43200634]
[1773062880162,0.45743516,84.792,84.751,0.48286304]
[1773062880364,11.78453162,84.857,84.781,0.48286304]
[1773062880568,11.43200634,84.83,84.79,11.43200634]
[1773062880882,11.43200634,84.83,84.791,0.48286304]
[1773062881064,11.53200634,84.86,84.82,11.43200634]
[1773062881265,11.53200634,84.86,84.82,11.91486938]
[1773062881465,11.53200634,84.86,84.831,0.48286304]
[1773062881466,0.1,84.86,84.831,0.48286304]
[1773062881707,0.1,84.86,84.84,11.43200634]
[1773062882682,12.24168903,84.859,84.82,11.43200634]
[1773062882885,0.45743516,84.839,84.79,11.43200634]
[1773062883190,0.45963822,84.819,84.778,11.79547202]
[1773062883400,0.45963822,84.819,84.77,11.8866345]
[1773062883401,11.43200634,84.81,84.77,11.8866345]
[1773062883687,0.45963822,84.819,84.78,11.43200634]
[1773062883878,11.43200634,84.82,84.781,0.45462816]
[1773062884466,41.24488856,84.859,84.8,11.8866345]
[1773062884467,11.43200634,84.84,84.8,11.8866345]
[1773062884974,11.7870319,84.839,84.801,11.79231376]
[1773062885886,12.24667012,84.839,84.801,11.79231376]
[1773062886478,12.24667012,84.839,84.791,11.79370452]
[1773062886479,11.43200634,84.83,84.791,11.79370452]
[1773062886979,11.43200634,84.83,84.791,41.27796582]
[1773062887382,0.45963822,84.839,84.792,0.45462816]
[1773062887673,0.45963822,84.819,84.779,29.48823789]
[1773062887871,11.43200634,84.81,84.772,0.45462816]
[1773062888076,11.43200634,84.82,84.781,0.45462816]
[1773062888701,11.78717084,84.838,84.791,0.45462816]
[1773062888982,11.43200634,84.84,84.794,0.45462816]
[1773062889169,11.89164456,84.85,84.811,0.45462816]
[1773062889571,11.78564273,84.849,84.811,0.45462816]
[1773062889985,11.43200634,84.84,84.811,0.45462816]
[1773062890389,11.89164456,84.83,84.792,11.79356543]
[1773062890586,0.45963822,84.829,84.792,11.79356543]
[1773062890983,11.78717084,84.838,84.801,11.79231376]
[1773062891384,11.43200634,84.83,84.801,11.79231376]
[1773062891588,0.45963822,84.837,84.801,11.79231376]
[1773062892789,11.78744872,84.836,84.794,11.79328726]
[1773062893094,0.45963822,84.835,84.8,11.43200634]
[1773062893581,0.45963822,84.835,84.794,41.27650541]
[1773062894292,0.45963822,84.829,84.794,11.79328726]
[1773062894989,0.45963822,84.819,84.794,11.79328726]
[1773062895291,11.78842141,84.829,84.794,12.24791542]
[1773062895685,12.24805963,84.829,84.794,12.24791542]
[1773062895882,0.45963822,84.828,84.794,0.45462816]
[1773062896079,0.45963822,84.828,84.791,11.79370452]
[1773062896475,11.43200634,84.82,84.786,11.79436545]
[1773062896881,11.78981124,84.819,84.786,11.79436545]
[1773062897195,12.24944946,84.819,84.786,11.79436545]
[1773062897893,11.78981124,84.819,84.787,0.45462816]
[1773062898395,0.45963822,84.818,84.786,11.79436545]
[1773062898988,11.43200634,84.81,84.77,11.43200634]
[1773062899194,0.45963822,84.809,84.766,0.45462816]
[1773062899697,0.45963822,84.809,84.771,0.45462816]
[1773062900096,41.26433935,84.819,84.741,0.45462816]
[1773062900097,0.45963822,84.789,84.741,0.45462816]
[1773062900297,0.45963822,84.789,84.751,0.45462816]
[1773062901005,11.7941218,84.788,84.753,0.45462816]
[1773062901494,11.79287885,84.797,84.761,0.45462816]
[1773062901689,0.45963822,84.796,84.761,0.45462816]
[1773062902786,0.45963822,84.829,84.781,0.45462816]
[1773062903086,12.24949714,84.819,84.782,41.73697582]
[1773062903396,11.43200634,84.8,84.757,11.79842879]
[1773062903581,11.43200634,84.8,84.76,11.43200634]
[1773062903778,11.43200634,84.84,84.791,0.5]
[1773062904301,11.43200634,84.83,84.79,11.43200634]
[1773062905101,11.7870319,84.839,84.8,11.43200634]
[1773062905301,11.7870319,84.839,84.793,0.5]
[1773062905786,11.43200634,84.83,84.793,0.5]
[1773062906388,11.43200634,84.82,84.793,0.5]
[1773062907410,11.78842141,84.829,84.794,11.79328726]
[1773062907620,11.43200634,84.82,84.793,0.5]
[1773062907910,11.43200634,84.82,84.794,11.79328726]
[1773062908084,41.25947494,84.829,84.794,11.79328726]
[1773062908907,11.43200634,84.83,84.795,0.5]
[1773062909105,11.78842141,84.829,84.795,0.5]
[1773062909802,11.78842141,84.829,84.79,11.43200634]
[1773062909803,11.78842141,84.829,84.797,0.5]
[1773062910787,11.78842141,84.829,84.796,41.27553186]
[1773062910788,11.78842141,84.829,84.796,11.7930091]
[1773062911499,41.25947494,84.829,84.796,11.7930091]
[1773062911736,11.44312901,84.81,84.77,11.94312901]
[1773062911897,11.44312901,84.81,84.772,0.5]
[1773062912287,11.78842141,84.829,84.791,0.5]
[1773062913511,11.44312901,84.82,84.791,0.5]
[1773062913914,11.78927407,84.823,84.793,0.5]
[1773062914410,0.1,84.86,84.801,0.5]
[1773062914600,11.44312901,84.84,84.801,0.5]
[1773062915118,11.44312901,84.83,84.792,11.79356543]
[1773062915299,11.44312901,84.84,84.8,11.44312901]
[1773062916610,11.7870319,84.839,84.801,11.79231376]
[1773062917605,11.7870319,84.839,84.802,0.5]
[1773062917811,11.7870319,84.839,84.811,0.5]
[1773062919600,11.7870319,84.839,84.802,0.5]
[1773062920120,11.44312901,84.83,84.797,0.5]
[1773062920317,41.25461166,84.839,84.796,11.79299185]
[1773062920318,11.7870319,84.839,84.801,0.5]
[1773062920524,0.03969636,84.848,84.801,0.5]
[1773062920525,11.78592053,84.847,84.801,0.5]
[1773062920702,11.78592053,84.847,84.811,0.5]
[1773062921732,11.44312901,84.84,84.812,11.79078432]
[1773062922600,11.78592053,84.847,84.813,0.5]
[1773062922802,11.44312901,84.84,84.813,0.5]
[1773062923336,11.54312901,84.86,84.821,0.5]
[1773062923527,11.78437751,84.859,84.831,0.5]
[1773062924135,0.06608299,84.849,84.814,11.79050628]
[1773062924329,11.44312901,84.84,84.814,11.79050628]
[1773062925230,0.07248727,84.839,84.803,0.5]
[1773062925419,0.07882526,84.849,84.805,0.53507354]
[1773062925620,11.44312901,84.84,84.805,0.53507354]
[1773062925815,11.7870319,84.839,84.807,0.53507354]
[1773062927433,11.7870319,84.839,84.806,41.2706648]
[1773062927434,0.1,84.86,84.821,0.53507354]
[1773062927635,23.32734087,84.86,84.831,0.53507354]
[1773062927839,52.7876284,84.86,84.831,0.53507354]
[1773062928040,11.88421186,84.86,84.833,0.53507354]
[1773062928212,23.32734087,84.86,84.833,0.53507354]
[1773062928738,11.88421186,84.86,84.833,0.53507354]
[1773062929114,23.32734087,84.86,84.833,0.53507354]
[1773062929628,11.88421186,84.86,84.833,0.53507354]
[1773062929819,23.32734087,84.86,84.833,0.53507354]
[1773062930020,11.88421186,84.86,84.834,12.32280015]
[1773062930217,11.88421186,84.86,84.835,0.53507354]
[1773062930421,23.32734087,84.86,84.835,0.53507354]
[1773062931338,0.1,84.86,84.835,0.53507354]
[1773062931725,47.19789779,84.93,84.851,0.53507354]
[1773062931726,11.44312901,84.89,84.851,0.53507354]
[1773062931916,11.78008929,84.889,84.852,11.78522604]
[1773062932236,0.12120488,84.888,84.853,0.53507354]
[1773062933041,11.44312901,84.88,84.853,0.53507354]
[1773062933415,11.78036684,84.887,84.854,11.78494826]
[1773062933641,11.78036684,84.887,84.854,12.3200218]
[1773062933815,11.78036684,84.887,84.854,11.78494826]
[1773062934024,0.13268121,84.916,84.871,0.53507354]
[1773062934263,11.44312901,84.9,84.871,0.53507354]
[1773062934548,11.44312901,84.89,84.855,0.53507354]
[1773062934940,0.13268121,84.899,84.861,0.53507354]
[1773062935520,0.13268121,84.899,84.832,0.28432314]
[1773062935521,11.77870175,84.899,84.871,0.53507354]
[1773062935722,11.77870175,84.899,84.862,41.2434305]
[1773062935723,0.13832369,84.921,84.881,0.53507354]
[1773062935944,0.1,84.93,84.881,0.53507354]
[1773062935945,11.44312901,84.92,84.881,0.53507354]
[1773062937321,11.77454108,84.929,84.891,0.53507354]
[1773062937534,11.77454108,84.929,84.893,0.53507354]
[1773062938626,11.77454108,84.929,84.862,106.05453559]
[1773062938627,11.44312901,84.92,84.885,0.53507354]
[1773062939644,41.21574676,84.919,84.885,0.53507354]
[1773062940251,41.21574676,84.919,84.886,12.31557915]
[1773062940751,11.44312901,84.91,84.886,0.53507354]
[1773062940924,11.44312901,84.91,84.852,0.14216157]
[1773062940925,11.44312901,84.91,84.876,0.53507354]
[1773062941127,11.44312901,84.91,84.881,0.53507354]
[1773062942458,11.77731453,84.909,84.883,0.53507354]
[1773062943538,11.77731453,84.909,84.865,0.54395762]
[1773062943539,11.44312901,84.89,84.865,0.54395762]
[1773062943739,11.44312901,84.89,84.808,47.16535975]
[1773062943740,11.44312901,84.88,84.855,0.54395762]
[1773062943931,11.44312901,84.88,84.839,29.46737123]
[1773062943932,41.22060087,84.909,84.861,0.54395762]
[1773062944141,11.77731453,84.909,84.881,0.54395762]
[1773062944345,11.44312901,84.9,84.881,0.54395762]
[1773062944548,11.77870175,84.899,84.861,0.54395762]
[1773062944732,11.77870175,84.899,84.833,47.1510693]
[1773062944733,11.44312901,84.89,84.862,0.54395762]
[1773062944927,11.44312901,84.88,84.851,0.54395762]
[1773062945453,11.44312901,84.89,84.851,0.54395762]
[1773062945625,41.22545612,84.899,84.841,0.54395762]
[1773062945626,11.44312901,84.87,84.841,0.54395762]
[1773062945828,11.44312901,84.87,84.842,0.54395762]
[1773062946030,0.19626116,84.889,84.842,0.54395762]
[1773062946031,11.44312901,84.88,84.842,0.54395762]
[1773062946227,11.44312901,84.88,84.85,11.44312901]
[1773062946450,11.44312901,84.88,84.851,0.54395762]
[1773062946646,11.44312901,84.89,84.853,0.54395762]
[1773062946948,11.78008929,84.889,84.853,0.54395762]
[1773062947147,11.44312901,84.87,84.845,0.54395762]
[1773062947354,0.20603436,84.888,84.845,0.54395762]
[1773062947355,11.44312901,84.86,84.845,0.54395762]
[1773062947649,100.13075898,84.889,84.781,47.1801551]
[1773062947650,0.20603436,84.849,84.791,0.54395762]
[1773062947855,0.20603436,84.849,84.781,11.79509559]
[1773062947856,11.44312901,84.83,84.801,0.54395762]
[1773062948044,11.44312901,84.83,84.768,88.47678368]
[1773062948045,0.21084517,84.884,84.821,0.54395762]
[1773062948233,11.44312901,84.86,84.831,0.54395762]
[1773062948748,11.78425387,84.859,84.831,0.54395762]
[1773062949545,11.78425387,84.859,84.831,12.33196392]
[1773062949738,11.78425387,84.859,84.802,0.28432314]
[1773062949739,11.44312901,84.84,84.811,0.54395762]
[1773062950839,11.44312901,84.84,84.814,12.33436339]
[1773062951045,11.44312901,84.84,84.815,0.54395762]
[1773062951356,11.7870319,84.839,84.815,0.54395762]
[1773062952349,11.44312901,84.85,84.821,0.54395762]
[1773062952558,11.44312901,84.84,84.813,0.54395762]
[1773062952962,11.7870319,84.839,84.813,0.54395762]
[1773062953339,11.44312901,84.83,84.808,11.79122142]
[1773062953565,11.44312901,84.83,84.804,0.54395762]
[1773062953743,41.25461166,84.839,84.806,0.54395762]
[1773062953744,11.7870319,84.839,84.806,0.54395762]
[1773062953946,23.23012114,84.84,84.806,0.54395762]
[1773062954144,11.44312901,84.83,84.806,0.54395762]
[1773062954344,11.7846705,84.856,84.806,0.54395762]
[1773062954573,11.44312901,84.84,84.806,0.54395762]
[1773062955365,11.7870319,84.839,84.808,0.54395762]
[1773062955854,11.44312901,84.85,84.811,0.54395762]
[1773062956778,11.44312901,84.84,84.811,0.54395762]
[1773062957356,11.7870319,84.839,84.812,11.79078432]
[1773062958056,106.03954096,84.874,84.812,11.79078432]
[1773062958057,11.78494784,84.855,84.821,0.54395762]
[1773062958639,11.44312901,84.87,84.841,0.54395762]
[1773062959456,11.44312901,84.86,84.841,0.54395762]
[1773062959639,12.03649363,84.872,84.835,11.7874608]
[1773062959640,11.44312901,84.87,84.835,11.7874608]
[1773062959961,11.44312901,84.88,84.851,0.54395762]
[1773062961645,11.78147716,84.879,84.852,12.32918366]
[1773062962346,11.78147716,84.879,84.853,0.54395762]
[1773062962742,11.44312901,84.89,84.853,0.54395762]
[1773062962959,11.44312901,84.88,84.853,0.54395762]
[1773062963944,11.78147716,84.879,84.853,0.54395762]
[1773062964345,41.23517006,84.879,84.853,0.54395762]
[1773062964542,11.44312901,84.89,84.855,0.54395762]
[1773062964741,11.77967299,84.892,84.855,0.54395762]
[1773062964742,11.44312901,84.88,84.855,0.54395762]
[1773062965844,11.44312901,84.88,84.856,12.32862812]
[1773062966168,11.78147716,84.879,84.856,12.32862812]
[1773062966457,11.78147716,84.879,84.857,0.54395762]
[1773062968746,11.77454108,84.929,84.871,0.54395762]
[1773062968952,11.44312901,84.92,84.891,0.54395762]
[1773062969567,0.54122919,84.92,84.862,0.54395762]
[1773062969753,0.54122919,84.92,84.88,4.80737609]
[1773062969754,4.26341847,84.91,84.88,4.80737609]
[1773062970152,0.54122919,84.918,84.881,11.78119956]
[1773062970362,0.54122919,84.918,84.882,0.54395762]
[1773062971469,11.77533561,84.924,84.891,0.54395762]
[1773062971967,11.77533561,84.924,84.9,11.41566462]
[1773062972673,0.54122919,84.929,84.901,11.77842428]
[1773062972962,0.54122919,84.929,84.895,11.77915476]
[1773062973162,0.58761869,84.909,84.88,11.41566462]
[1773062973470,0.58761869,84.918,84.89,11.41566462]
[1773062974564,11.77495702,84.926,84.9,11.41566462]
[1773062974770,11.51566462,84.93,84.892,11.77967299]
[1773062974771,0.58761869,84.928,84.892,11.77967299]
[1773062974969,0.58761869,84.928,84.892,12.39087942]
[1773062975157,0.58761869,84.928,84.9,11.41566462]
[1773062976368,0.58761869,84.928,84.89,11.41566462]
[1773062976548,11.77454108,84.929,84.901,0.61120643]
[1773062976750,11.77467972,84.928,84.91,11.41566462]
[1773062977846,11.77467972,84.928,84.902,0.61120643]
[1773062980064,0.1,84.93,84.902,0.61120643]
[1773062980462,0.1,84.93,84.91,11.41566462]
[1773062981663,0.1,84.93,84.911,0.61120643]
[1773062982061,0.1,84.93,84.921,0.61120643]
[1773062982261,0.58761869,84.929,84.873,0.61120643]
[1773062982466,0.58761869,84.929,84.9,11.41566462]
[1773062982663,0.58761869,84.929,84.9,12.02687105]
[1773062982862,0.1,84.93,84.901,0.61120643]
[1773062983461,11.51566462,84.93,84.901,0.61120643]
[1773062983874,0.1,84.93,84.901,0.61120643]
[1773062985756,0.1,84.93,84.902,11.77828555]
[1773062985958,0.1,84.93,84.901,0.61120643]
[1773062986364,0.58761869,84.929,84.901,0.61120643]
[1773062987668,41.21137904,84.928,84.901,0.64269349]
[1773062987981,11.77467972,84.928,84.901,0.64269349]
[1773062988363,11.77467972,84.928,84.902,0.64269349]
[1773062988559,0.1,84.93,84.911,0.64269349]
[1773062988789,11.8744677,84.93,84.911,0.64269349]
[1773062990365,0.1,84.93,84.912,0.64269349]
[1773062991565,53.0,85.054,84.911,11.77698039]
[1773062991566,0.61619329,85.009,84.961,0.64269349]
[1773062991878,0.61619329,84.989,84.95,11.41566462]
[1773062992265,0.61619329,84.989,84.96,11.41566462]
[1773062992661,0.61619329,84.989,84.951,0.64269349]
[1773062992856,0.61619329,84.989,84.952,12.41404672]
[1773062993061,0.61619329,84.989,84.96,11.41566462]
[1773062993578,0.61619329,85.0,84.97,4.25454697]
[1773062993764,0.61619329,85.009,84.98,4.25454697]
[1773062993955,0.61619329,85.029,85.0,4.25454697]
[1773062994376,0.61619329,85.019,84.98,4.25454697]
[1773062994780,0.61619329,85.019,84.991,11.76595168]
[1773062995377,0.61619329,85.019,84.991,41.1808309]
[1773062995684,11.76101344,85.027,84.991,41.82352439]
[1773062995865,0.61619329,85.026,84.991,41.82352439]
[1773062996579,0.61619329,85.026,84.991,41.1808309]
[1773062997079,11.78603892,85.09,84.991,41.1808309]
[1773062997080,12.37592398,85.036,85.0,4.25454697]
[1773062997384,0.61619329,85.047,85.01,4.25454697]
[1773062997680,4.25454697,85.04,85.01,4.25454697]
[1773062998178,4.87074026,85.04,85.01,4.25454697]
[1773062998381,0.61619329,85.039,85.001,0.64269349]
[1773062998579,0.61619329,85.019,84.98,0.64269349]
[1773062998766,0.61619329,85.019,84.99,4.25454697]
[1773062999174,11.76221506,85.018,84.991,11.76595168]
[1773062999372,0.61619329,85.039,84.992,0.64269349]
[1773062999690,4.25454697,85.03,85.0,4.25454697]
[1773063000266,4.25454697,85.03,84.971,94.14915119]
[1773063000267,0.61619329,85.009,84.968,0.64269349]
[1773063000563,4.25454697,84.99,84.95,4.25454697]
[1773063000767,4.25454697,84.99,84.951,0.64269349]
[1773063000768,4.87074026,84.99,84.951,0.64269349]
[1773063000972,241.06869866,85.038,84.981,0.64269349]
[1773063000973,0.61619329,85.032,84.981,0.64269349]
[1773063001181,47.02322059,85.065,84.981,0.64269349]
[1773063001182,4.25454697,85.04,85.01,4.25454697]
[1773063001362,47.00198363,85.103,85.001,41.17598615]
[1773063001363,11.75543982,85.067,85.011,0.64269349]
[1773063001564,4.25454697,85.06,85.021,0.64269349]
[1773063001808,41.14403939,85.067,85.011,0.64269349]
[1773063001986,41.14403939,85.067,85.02,0.64269349]
[1773063001987,4.25454697,85.06,85.02,0.64269349]
[1773063002297,4.25454697,85.03,84.981,0.64269349]
[1773063002578,41.14403939,85.067,84.996,0.64269349]
[1773063002881,4.25454697,85.01,84.972,0.64269349]
[1773063003068,288.00827577,85.067,85.0,4.25454697]
[1773063003269,288.00827577,85.067,84.96,4.25454697]
[1773063003270,4.25454697,85.02,84.98,4.25454697]
[1773063003470,0.65582826,85.019,84.968,29.42265245]
[1773063003669,0.65582826,85.019,84.98,4.25454697]
[1773063003864,0.65582826,85.0,84.92,4.25454697]
[1773063004072,0.65582826,85.0,84.832,60.49941893]
[1773063004073,0.65582826,84.969,84.881,11.78119956]
[1773063004280,0.65582826,84.929,84.844,47.14506284]
[1773063004465,4.25454697,84.93,84.89,4.25454697]
[1773063004784,0.65582826,84.999,84.92,4.25454697]
[1773063005083,4.25454697,84.99,84.95,4.25454697]
[1773063005268,0.65582826,85.0,84.95,4.25454697]
[1773063005269,0.65582826,84.992,84.952,0.66753501]
[1773063005465,0.65582826,85.009,84.96,4.25454697]
[1773063005674,0.65582826,85.009,84.951,41.2002213]
[1773063005675,0.65582826,85.009,84.952,0.14216157]
[1773063005873,0.65582826,85.009,84.97,11.3952581]
[1773063006186,0.65582826,85.009,84.96,11.3952581]
[1773063006363,0.65582826,85.03,84.97,11.3952581]
[1773063006563,0.65582826,85.03,84.937,3.69383402]
[1773063006564,0.65582826,84.989,84.945,11.77230041]
[1773063006778,0.65582826,84.989,84.94,11.3952581]
[1773063007083,0.65582826,84.969,84.93,11.3952581]
[1773063007294,0.65582826,84.949,84.868,47.13179425]
[1773063007581,0.65582826,84.94,84.91,11.3952581]
[1773063007771,11.3952581,84.96,84.911,0.58886724]
[1773063007976,0.65582826,84.959,84.92,11.3952581]
[1773063008579,0.65582826,84.939,84.9,11.3952581]
[1773063008786,0.65582826,84.939,84.893,0.59277753]
[1773063008974,12.05108636,84.95,84.911,0.59277753]
[1773063009174,11.76913661,84.968,84.932,0.59664591]
[1773063009369,0.65582826,84.971,84.94,11.3952581]
[1773063009994,11.76858259,84.972,84.91,0.28432314]
[1773063009995,0.65582826,84.949,84.911,0.59664591]
[1773063010485,11.3952581,84.97,84.94,11.3952581]
[1773063010669,0.65582826,84.985,84.95,11.3952581]
[1773063010981,11.3952581,85.02,84.971,0.60046397]
[1773063010982,0.65582826,85.019,84.971,0.60046397]
[1773063011164,0.65582826,84.989,84.926,0.60424872]
[1773063011361,0.65582826,84.989,84.95,11.3952581]
[1773063011587,0.65582826,84.959,84.906,3.69383402]
[1773063011769,11.3952581,84.99,84.95,11.99950682]
[1773063012087,0.65582826,85.027,84.981,0.60798347]
[1773063012287,0.65582826,85.027,85.0,11.3952581]
[1773063012587,0.65582826,85.027,84.96,11.3952581]
[1773063012588,0.65582826,85.042,85.01,11.3952581]
[1773063012787,0.65582826,85.039,85.0,11.3952581]
[1773063013077,11.3952581,85.04,85.0,11.3952581]
[1773063013078,0.65582826,85.029,85.0,11.3952581]
[1773063013289,0.65582826,85.029,85.001,11.76456747]
[1773063013481,0.65582826,85.067,85.01,0.61167232]
[1773063013669,0.65582826,85.059,85.02,11.3952581]
[1773063013874,0.65582826,85.049,85.01,11.3952581]
[1773063014281,0.65582826,85.049,85.011,0.61532053]
[1773063014587,0.65582826,85.049,85.01,11.3952581]
[1773063014588,0.65582826,85.048,85.01,11.3952581]